[Event "Fagernes Chess GM-Swiss 2024"]
[Site "Fagernes"]
[Date "2024.03.25"]
[Round "2"]
[White "Aamodt, Peder Marcus"]
[Black "Yaniv, Yuval"]
[Result "0-1"]
[ECO "B33"]
[WhiteElo "1941"]
[BlackElo "2368"]
[Annotator "RC"]
[PlyCount "58"]
[EventDate "2024.03.25"]
[EventType "swiss"]
[EventCountry "NOR"]
[SourceTitle "playchess.com"]
[Source "ChessBase"]
[SourceQuality "1"]
[TimeControl "40/6000+30:2400+30"]

1. e4 {[%emt 0:06:00]} c5 {[%emt 0:00:15]} 2. Nf3 {[%emt 0:00:18]} e6 {[%emt 0:00:14]} 3. d4 {[%emt 0:01:47]} cxd4 {[%emt 0:00:12]} 4. Nxd4 {[%emt 0:00:06]} Nf6 {[%emt 0:00:25]} 5. Nc3 {[%emt 0:00:43]} Nc6 {[%emt 0:00:10]} 6. Ndb5 {[%emt 0:01:37]} d6 {[%emt 0:00:31]} 7. Bf4 {[%emt 0:00:35]} e5 {[%emt 0:00:11]} 8. Bg5 {[%emt 0:00:04]} a6 {[%emt 0:00:11]} 9. Na3 {[%emt 0:01:25]} b5 {[%emt 0:00:10]} 10. Nab1 {[%emt 0:01:56]} Ne7 {[%emt 0:04:32]} 11. Qf3 {[%emt 0:09:25]} b4 {[%emt 0:08:51]} 12. Nd5 {[%emt 0:17:02]} Nexd5 {[%emt 0:04:41]} 13. exd5 {[%emt 0:00:14]} Be7 {[%emt 0:00:15]} 14. Bxf6 {[%emt 0:10:08]} Bxf6 {[%emt 0:00:28]} 15. a3 {[%emt 0:02:59]} O-O {[%emt 0:25:52]} 16. axb4 {[%emt 0:12:55]} e4 {[%emt 0:00:23]} 17. Qb3 {[%emt 0:02:06]} Bd4 {[%emt 0:03:55]} 18. Nd2 {[%emt 0:04:35]} Re8 {[%emt 0:12:24]} 19. Nc4 {[%emt 0:10:15]} Qf6 {[%emt 0:00:42]} 20. O-O-O {[%emt 0:03:15]} Bg4 {[%emt 0:10:13]} 21. Rxd4 {[%emt 0:01:30]} Qxd4 {[%emt 0:00:10]} 22. Ne3 {[%emt 0:00:06]} Bd7 {[%emt 0:01:29]} 23. Qc3 {[%emt 0:06:33]} Qb6 {[%emt 0:01:59]} 24. Qd2 {[%emt 0:00:43]} a5 {[%emt 0:02:13]} 25. Nc4 {[%emt 0:01:15]} axb4 {[%emt 0:01:25]} 26. Qe3 {[%emt 0:05:34]} Qxe3+ {[%emt 0:03:52]} 27. fxe3 {[%emt 0:00:08]} Ra1+ {[%emt 0:01:06]} 28. Kd2 {[%emt 0:00:52]} Bg4 {[%emt 0:00:07]} 29. h3 {[%emt 0:00:18]} Rd1# {[%emt 0:00:07]} 0-1

[Event "Fagernes Chess GM-Swiss 2024"]
[Site "Fagernes"]
[Date "2024.03.25"]
[Round "2"]
[White "Lien, Sebastian"]
[Black "Rounaiv Rana"]
[Result "0-1"]
[ECO "E61"]
[WhiteElo "1885"]
[BlackElo "2099"]
[Annotator "NA RC"]
[PlyCount "128"]
[EventDate "2024.03.25"]
[EventType "swiss"]
[EventCountry "NOR"]
[SourceTitle "playchess.com"]
[Source "ChessBase"]
[SourceQuality "1"]
[TimeControl "40/6000+30:2400+30"]

1. d4 {[%emt 0:01:26]} Nf6 {[%emt 0:00:10]} 2. c4 {[%emt 0:00:47]} g6 {[%emt 0:00:09]} 3. Nc3 {[%emt 0:00:24]} Bg7 {[%emt 0:00:10]} 4. Nf3 {[%emt 0:01:07]} O-O {[%emt 0:00:10]} 5. Bg5 {[%emt 0:00:02]} d6 {[%emt 0:03:12]} 6. e3 {[%emt 0:01:24]} Nbd7 {[%emt 0:04:34]} 7. Be2 {[%emt 0:00:15]} h6 {[%emt 0:00:47]} 8. Bh4 {[%emt 0:00:27]} c6 {[%emt 0:08:05]} 9. Qc2 {[%emt 0:02:00]} e5 {[%emt 0:03:41]} 10. dxe5 {[%emt 0:07:40]} dxe5 {[%emt 0:00:33]} 11. O-O {[%emt 0:00:28]} Qe8 {[%emt 0:02:56]} 12. Rad1 {[%emt 0:03:12]} a5 {[%emt 0:27:30]} 13. a3 {[%emt 0:13:57]} Nc5 {[%emt 0:21:53]} 14. Bxf6 {[%emt 0:01:05]} Bxf6 {[%emt 0:00:08]} 15. b4 $11 {[%emt 0:03:50]} axb4 {[%emt 0:01:51]} 16. axb4 {[%emt 0:00:08]} Na6 {[%emt 0:02:02]} 17. Ne4 {[%emt 0:06:57]} Be7 {[%emt 0:02:10]} 18. b5 {[%emt 0:00:34]} Nc5 {[%emt 0:09:39]} 19. Nxc5 {[%emt 0:09:38]} Bxc5 {[%emt 0:00:09]} 20. bxc6 {[%emt 0:00:07]} bxc6 {[%emt 0:00:33]} 21. Qe4 {[%emt 0:06:11]} f6 {[%emt 0:02:20]} 22. Rd8 {[%emt 0:19:00]} Bf5 {[%emt 0:01:24]} 23. Rxe8 {[%emt 0:00:04]} Bxe4 {[%emt 0:00:09]} 24. Rxa8 {[%emt 0:00:09]} Rxa8 {[%emt 0:00:07]} 25. Nd2 {[%emt 0:00:05]} Bf5 {[%emt 0:04:51]} 26. Bf3 {[%emt 0:00:52]} Ra6 {[%emt 0:00:39]} 27. Ne4 {[%emt 0:02:52]} Bxe4 {[%emt 0:00:25]} 28. Bxe4 {[%emt 0:00:07]} f5 {[%emt 0:00:07]} 29. Bc2 {[%emt 0:04:43]} Ra2 {[%emt 0:00:34]} 30. Bb3 {[%emt 0:00:34]} Ra3 {[%emt 0:01:34]} 31. Rb1 {[%emt 0:01:27]} Bb4 {[%emt 0:01:05]} 32. g4 {[%emt 0:04:05]} c5 {[%emt 0:02:18]} 33. gxf5 {[%emt 0:02:14]} gxf5 {[%emt 0:00:10]} 34. Bc2 {[%emt 0:00:21]} e4 {[%emt 0:00:57]} 35. Rd1 {[%emt 0:00:14]} Rc3 {[%emt 0:00:37]} 36. Ba4 {[%emt 0:00:05]} Kg7 {[%emt 0:03:30]} 37. Bb5 {[%emt 0:00:05]} Rc2 {[%emt 0:04:55]} 38. h4 {[%emt 0:13:23]} Bd2 {[%emt 0:00:56]} 39. Ra1 {[%emt 0:03:10]} Kf6 {[%emt 0:01:18]} 40. Kf1 {[%emt 0:01:26]} f4 {[%emt 0:01:06]} 41. exf4 {[%emt 0:42:42]} Kf5 {[%emt 0:03:38]} 42. Ra8 {[%emt 0:00:00]} Kg4 {[%emt 0:26:25]} 43. Rg8+ {[%emt 0:00:00]} Kf3 {[%emt 0:00:20]} 44. Rg3+ {[%emt 0:00:00]} Kxf4 {[%emt 0:00:11]} 45. Rg8 {[%emt 0:00:00]} Bc3 {[%emt 0:06:27]} 46. Rf8+ {[%emt 0:00:00]} Kg4 {[%emt 0:00:17]} 47. Bd7+ {[%emt 0:00:00]} Kxh4 {[%emt 0:00:41]} 48. Rf4+ {[%emt 0:00:00]} Kg5 {[%emt 0:00:07]} 49. Rxe4 {[%emt 0:00:00]} Bd4 {[%emt 0:01:24]} 50. f4+ {[%emt 0:00:00]} Kh4 {[%emt 0:00:55]} 51. f5+ {[%emt 0:03:33]} Kg3 {[%emt 0:00:07]} 52. Be6 {[%emt 0:00:53]} Kf3 {[%emt 0:01:42]} 53. Bd5 {[%emt 0:00:06]} Rf2+ {[%emt 0:00:12]} 54. Ke1 {[%emt 0:00:09]} Bc3+ {[%emt 0:00:06]} 55. Kd1 {[%emt 0:00:36]} Rd2+ {[%emt 0:00:06]} 56. Kc1 {[%emt 0:00:35]} Rxd5 {[%emt 0:00:12]} 57. Rh4 {[%emt 0:00:38]} Bd2+ {[%emt 0:04:09]} 58. Kc2 {[%emt 0:00:08]} Bg5 {[%emt 0:00:07]} 59. Rh3+ {[%emt 0:02:17]} Kg4 {[%emt 0:00:08]} 60. Rxh6 {[%emt 0:00:22]} Bxh6 {[%emt 0:00:22]} 61. cxd5 {[%emt 0:00:15]} Kxf5 {[%emt 0:00:07]} 62. Kd3 {[%emt 0:00:43]} Ke5 {[%emt 0:00:05]} 63. Kc4 {[%emt 0:00:05]} Be3 {[%emt 0:00:11]} 64. Kd3 {[%emt 0:00:08]} Bd4 {[%emt 0:00:05]} 0-1

[Event "Fagernes Chess GM-Swiss 2024"]
[Site "Fagernes"]
[Date "2024.03.25"]
[Round "2"]
[White "Stai, Sondre"]
[Black "Lund, Gunnar"]
[Result "0-1"]
[ECO "C00"]
[WhiteElo "1842"]
[BlackElo "2335"]
[Annotator "RC"]
[PlyCount "66"]
[EventDate "2024.03.25"]
[EventType "swiss"]
[EventCountry "NOR"]
[SourceTitle "playchess.com"]
[Source "ChessBase"]
[SourceQuality "1"]
[TimeControl "40/6000+30:2400+30"]

1. e4 {[%emt 0:00:04]} e6 {[%emt 0:12:39]} 2. d3 {[%emt 0:01:10]} d5 {[%emt 0:00:07]} 3. Nd2 {[%emt 0:00:07]} Nf6 {[%emt 0:00:15]} 4. Ngf3 {[%emt 0:00:27]} c5 {[%emt 0:00:09]} 5. g3 {[%emt 0:01:43]} Nc6 {[%emt 0:00:05]} 6. Bg2 {[%emt 0:01:21]} Be7 {[%emt 0:00:10]} 7. O-O {[%emt 0:00:20]} O-O {[%emt 0:00:06]} 8. e5 {[%emt 0:06:14]} Nd7 {[%emt 0:00:05]} 9. Re1 {[%emt 0:00:25]} b5 {[%emt 0:06:39]} 10. Nf1 {[%emt 0:02:24]} a5 {[%emt 0:01:58]} 11. Bf4 {[%emt 0:03:49]} Re8 {[%emt 0:07:51]} 12. h4 {[%emt 0:01:07]} Bf8 {[%emt 0:01:14]} 13. c3 {[%emt 0:16:45]} a4 {[%emt 0:02:57]} 14. N1h2 {[%emt 0:05:13]} b4 {[%emt 0:03:15]} 15. c4 {[%emt 0:07:39]} Nb6 {[%emt 0:01:57]} 16. Qc2 {[%emt 0:16:45]} Bb7 {[%emt 0:02:54]} 17. Ng4 {[%emt 0:02:35]} b3 {[%emt 0:08:21]} 18. axb3 {[%emt 0:04:49]} Nb4 {[%emt 0:00:05]} 19. Qe2 {[%emt 0:01:28]} axb3 {[%emt 0:00:12]} 20. Rxa8 {[%emt 0:00:29]} Bxa8 {[%emt 0:00:28]} 21. Ng5 {[%emt 0:04:40]} h6 {[%emt 0:21:24]} 22. Nxh6+ {[%emt 0:05:58]} gxh6 {[%emt 0:00:01]} 23. Qg4 {[%emt 0:01:39]} Bg7 {[%emt 0:01:43]} 24. Ne4 {[%emt 0:04:35]} h5 {[%emt 0:00:54]} 25. Qxh5 {[%emt 0:04:01]} dxe4 {[%emt 0:00:05]} 26. Bg5 {[%emt 0:01:04]} Qxd3 {[%emt 0:06:04]} 27. Rd1 {[%emt 0:01:25]} Qc2 {[%emt 0:02:41]} 28. Bh3 {[%emt 0:07:03]} e3 {[%emt 0:00:30]} 29. fxe3 {[%emt 0:02:48]} Qe4 {[%emt 0:01:29]} 30. Kh2 {[%emt 0:01:10]} Nxc4 {[%emt 0:03:24]} 31. Bf6 {[%emt 0:00:17]} Nxe5 {[%emt 0:00:31]} 32. Bxe5 {[%emt 0:02:05]} Qxe5 {[%emt 0:00:28]} 33. Qg4 {[%emt 0:00:29]} Nd5 {[%emt 0:00:28]} 0-1

[Event "Fagernes Chess GM-Swiss 2024"]
[Site "Fagernes"]
[Date "2024.03.25"]
[Round "2"]
[White "Rynning, Rune Kleiven"]
[Black "Valcu, Lavinia"]
[Result "1-0"]
[ECO "B15"]
[WhiteElo "1813"]
[BlackElo "2070"]
[Annotator "NA RC"]
[PlyCount "119"]
[EventDate "2024.03.25"]
[EventType "swiss"]
[EventCountry "NOR"]
[SourceTitle "playchess.com"]
[Source "ChessBase"]
[SourceQuality "1"]
[TimeControl "40/6000+30:2400+30"]

1. e4 {[%emt 0:00:04]} c6 {[%emt 0:00:05]} 2. Nc3 {[%emt 0:00:09]} d5 {[%emt 0:00:07]} 3. Nf3 {[%emt 0:00:05]} g6 {[%emt 0:03:31]} 4. d4 {[%emt 0:06:36]} Bg7 {[%emt 0:01:51]} 5. Bf4 {[%emt 0:05:23]} Bg4 {[%emt 0:14:49]} 6. exd5 {[%emt 0:08:21]} cxd5 {[%emt 0:00:41]} 7. Nb5 {[%emt 0:13:16]} Na6 {[%emt 0:01:28] B15: Caro-Kann (Flohr-Variante).} 8. h3 {[%emt 0:05:13]} Bxf3 {[%emt 0:04:29]} 9. Qxf3 {[%emt 0:00:34]} Nf6 {[%emt 0:00:46]} 10. Be2 {[%emt 0:06:39]} O-O {[%emt 0:01:19]} 11. O-O {[%emt 0:01:59]} Nb4 {[%emt 0:01:11]} 12. c3 {[%emt 0:17:02]} Nc6 {[%emt 0:00:45]} 13. a4 {[%emt 0:03:07]} a6 {[%emt 0:07:38]} 14. Na3 {[%emt 0:00:13]} Re8 {[%emt 0:01:01]} 15. Nc2 {[%emt 0:03:37]} Ne4 {[%emt 0:07:14]} 16. Rfd1 {[%emt 0:05:12]} Rc8 {[%emt 0:04:33]} 17. Ne1 {[%emt 0:03:30]} Na5 {[%emt 0:04:44]} 18. Nd3 {[%emt 0:04:11]} Nc4 {[%emt 0:02:41]} 19. Rab1 {[%emt 0:03:50]} f6 {[%emt 0:07:38]} 20. Nc5 {[%emt 0:03:38]} e5 {[%emt 0:01:25]} 21. Bxc4 {[%emt 0:02:57]} exf4 {[%emt 0:02:48]} 22. Nxe4 {[%emt 0:02:57]} Rxc4 {[%emt 0:00:30]} 23. Nc5 {[%emt 0:00:33]} b6 {[%emt 0:04:23]} 24. b3 {[%emt 0:00:09]} Rxc3 {[%emt 0:00:25]} 25. Qxc3 {[%emt 0:00:25]} bxc5 {[%emt 0:00:02]} 26. Qxc5 {[%emt 0:02:14]} f3 {[%emt 0:00:35]} 27. Re1 {[%emt 0:03:23]} Re4 {[%emt 0:01:28]} 28. gxf3 {[%emt 0:02:53]} Bf8 {[%emt 0:05:03]} 29. Qc6 {[%emt 0:01:47]} Rxe1+ {[%emt 0:00:57]} 30. Rxe1 {[%emt 0:00:03]} f5 {[%emt 0:00:15]} 31. Re8 {[%emt 0:01:51]} Qg5+ {[%emt 0:00:10]} 32. Kf1 {[%emt 0:00:17]} Kg7 {[%emt 0:01:06]} 33. Qd7+ {[%emt 0:01:29]} Kh6 {[%emt 0:00:29]} 34. Qxd5 {[%emt 0:00:55]} Bb4 {[%emt 0:00:40]} 35. Qe5 {[%emt 0:01:05]} Qc1+ {[%emt 0:02:14]} 36. Kg2 {[%emt 0:00:10]} Qg5+ {[%emt 0:00:27]} 37. Qg3 {[%emt 0:00:36]} Qf6 {[%emt 0:00:01]} 38. h4 {[%emt 0:01:47]} Bd2 {[%emt 0:00:23]} 39. d5 {[%emt 0:00:50]} Qf7 {[%emt 0:00:38]} 40. Re6 {[%emt 0:00:40]} a5 {[%emt 0:01:31]} 41. f4 {[%emt 0:06:43]} Kg7 {[%emt 0:02:39]} 42. Qd3 {[%emt 0:04:28]} Bb4 {[%emt 0:01:02]} 43. Qd4+ {[%emt 0:00:09]} Kh6 {[%emt 0:00:15]} 44. Qe5 {[%emt 0:01:28]} Ba3 {[%emt 0:03:21]} 45. Rc6 {[%emt 0:03:33]} Qb7 {[%emt 0:08:27]} 46. Rc7 {[%emt 0:03:50]} Qxb3 {[%emt 0:01:15]} 47. Qg7+ {[%emt 0:00:21]} Kh5 {[%emt 0:00:05]} 48. Qxh7+ {[%emt 0:00:32]} Kg4 {[%emt 0:00:06]} 49. Qxg6+ {[%emt 0:00:26]} Kxf4 {[%emt 0:00:07]} 50. Qg3+ {[%emt 0:01:50]} Qxg3+ {[%emt 0:00:17]} 51. fxg3+ {[%emt 0:00:11]} Ke5 {[%emt 0:00:06]} 52. Rc3 {[%emt 0:01:47]} Be7 {[%emt 0:00:43]} 53. Rd3 {[%emt 0:00:16]} f4 {[%emt 0:00:33] [#]} 54. d6 {[%emt 0:05:57]} Bd8 {[%emt 0:00:52]} 55. gxf4+ {[%emt 0:02:28]} Kxf4 {[%emt 0:00:03]} 56. Rf3+ {[%emt 0:00:32]} Ke5 {[%emt 0:00:27]} 57. Rf8 {[%emt 0:00:24]} Bxh4 {[%emt 0:00:19]} 58. d7 {[%emt 0:00:11]} Kd6 {[%emt 0:00:00]} 59. d8=Q+ {[%emt 0:00:16]} Bxd8 {[%emt 0:00:00]} 60. Rxd8+ {[%emt 0:00:15]} 1-0

[Event "Fagernes Chess GM-Swiss 2024"]
[Site "Fagernes"]
[Date "2024.03.26"]
[Round "3.1"]
[White "Jumabayev, Rinat"]
[Black "Ghasi, Ameet K"]
[Result "1-0"]
[ECO "B40"]
[WhiteElo "2598"]
[BlackElo "2485"]
[Annotator "TA"]
[PlyCount "87"]
[EventDate "2024.03.25"]
[EventType "swiss"]
[EventCountry "NOR"]
[SourceTitle "playchess.com"]
[Source "ChessBase"]
[SourceQuality "1"]
[TimeControl "40/6000+30:2400+30"]

{[%evp 12,87,3,0,4,20,14,10,11,9,16,2,47,47,62,58,63,62,50,50,50,47,39,24,25,8,43,47,48,62,70,56,90,88,163,165,164,162,158,143,176,178,163,169,177,176,168,169,207,170,176,177,181,168,254,174,249,244,217,81,595,539,683,647,571,333,891,125,141,0,1168,1158,29971,29971,29992,29993,29993,29994]} 1. e4 {[%emt 0:00:55]} c5 {[%emt 0:01:41]} 2. Nf3 {[%emt 0:01:27]} e6 {[%emt 0:00:36]} 3. c3 {[%emt 0:00:13]} d5 {[%emt 0:01:20]} 4. e5 {[%emt 0:00:16]} d4 {[%emt 0:03:00]} 5. d3 {[%emt 0:07:04]} Ne7 {[%emt 0:12:04]} 6. g3 {[%emt 0:03:56] B40: Sicilian: 2...e6, Unusual lines.} Nbc6 {[%emt 0:08:55]} 7. Bg2 {[%emt 0:02:45]} dxc3 {[%emt 0:21:54]} 8. bxc3 {[%emt 0:00:49]} b6 {[%emt 0:09:08]} 9. O-O {[%emt 0:05:54]} Bb7 {[%emt 0:01:12]} 10. Qe2 {[%emt 0:10:23]} Qd7 {[%emt 0:01:55]} 11. Rd1 {[%emt 0:00:18]} Nd5 {[%emt 0:14:17]} 12. Bb2 {[%emt 0:03:29]} Rd8 {[%emt 0:06:02]} 13. Nbd2 {[%emt 0:03:16]} Be7 {[%emt 0:05:46]} 14. Ne4 {[%emt 0:02:51]} Qc8 $146 {[%emt 0:00:55]} ({Predecessor:} 14... O-O 15. c4 Nc7 16. Nf6+ Bxf6 17. exf6 g6 18. d4 cxd4 19. Nxd4 Nxd4 20. Rxd4 Qc8 {1-0 Garcia Padron,J (2460)-Pomes Marcet,J (2395) ESP-chT Salamanca 1998 (8)}) 15. c4 {[%emt 0:27:48]} Ndb4 {[%emt 0:00:02]} 16. a3 {[%emt 0:00:19]} Na6 {[%emt 0:00:04]} 17. Qe3 {[%emt 0:01:06]} h6 {[%emt 0:02:09]} 18. h4 {[%emt 0:02:28]} Na5 {[%emt 0:04:34]} 19. Bc3 {[%emt 0:03:31]} Nb8 {[%emt 0:05:40]} 20. Bxa5 {[%emt 0:16:05]} bxa5 {[%emt 0:00:01]} 21. Rab1 {[%emt 0:02:14]} Bxe4 {[%emt 0:01:13]} 22. Qxe4 {[%emt 0:00:05]} Nc6 {[%emt 0:03:50]} (22... Rd7 $16 {keeps fighting.}) 23. Nd2 $18 {[%emt 0:01:21]} Nd4 {[%emt 0:00:45]} 24. Rb7 {[%emt 0:00:11]} Rd7 {[%emt 0:02:16]} 25. Rdb1 {[%emt 0:00:16]} O-O {[%emt 0:00:16] [#]} 26. Rxd7 $1 {[%emt 0:01:12]} Qxd7 {[%emt 0:00:01]} 27. Rb7 {[%emt 0:00:12]} Qe8 {[%emt 0:02:16]} 28. Rxa7 {[%emt 0:04:54]} Bd8 {[%emt 0:00:01] [#]} 29. Nf3 $1 {[%emt 0:01:05]} Nxf3+ {[%emt 0:01:06]} 30. Bxf3 {[%emt 0:00:01]} Qa4 {[%emt 0:00:10]} 31. Qc6 {[%emt 0:05:00]} Qxa3 {[%emt 0:00:08]} 32. Qd6 {[%emt 0:00:28]} Qb4 {[%emt 0:02:33]} (32... Qb2 $142 33. Rb7 (33. Qxc5 $2 {is the wrong capture.} Bb6 $19) 33... Qd4 34. Qxd4 cxd4) 33. Rb7 {[%emt 0:02:29]} Qe1+ {[%emt 0:00:02]} (33... Qc3 {is a better defense.} 34. Rd7 (34. Qxc5 Qxd3 35. Kg2 g6 $16) 34... Qd4 35. Qxd4 cxd4) 34. Kg2 $18 {[%emt 0:00:01]} a4 {[%emt 0:00:17]} 35. Qxc5 {[%emt 0:02:42]} (35. Ra7 $18 {[%cal Oa7a8] is more deadly. Ra8! would now be deadly.} Qb4 36. Bh5 (36. Ra8 Qb6 $18)) 35... Ba5 $2 {[%emt 0:00:29][%mdl 8192]} (35... Qa5 $16 {keeps fishing.} 36. Rb5 Qc3) 36. Be4 $18 {[%emt 0:00:30]} g6 {[%emt 0:01:14]} 37. Qe7 {[%emt 0:00:40]} Bd8 {[%emt 0:00:16]} 38. Qd6 {[%emt 0:00:36]} Qa5 $2 {[%emt 0:00:28]} (38... Ba5 39. Qe7 Bd8) 39. Rb5 $2 {[%emt 0:00:33]} (39. Bxg6 $18 {[%cal Od6d7] has better winning chances. And now Qd7! would win.} Bxh4 40. Bxf7+ (40. gxh4 Qd2 $18) 40... Rxf7 41. Qxe6) 39... Qa7 $16 {[%emt 0:00:19]} 40. Rb7 $2 {[%emt 0:00:26][%mdl 8192]} (40. Qa3 $16) 40... Qa5 $18 {[%emt 0:00:07]} 41. Bxg6 {[%emt 0:23:56]} a3 {[%emt 0:22:54]} 42. Qd7 {[%emt 0:03:30]} a2 {[%emt 0:03:26]} 43. Bxf7+ {[%emt 0:00:13]} Kh8 {[%emt 0:00:03]} 44. Bg6 {[%emt 0:02:52]} 1-0

[Event "Fagernes Chess GM-Swiss 2024"]
[Site "Fagernes"]
[Date "2024.03.26"]
[Round "3.2"]
[White "Ganguly, Surya Shekhar"]
[Black "Sokolovsky, Yahli"]
[Result "1-0"]
[ECO "E95"]
[WhiteElo "2574"]
[BlackElo "2475"]
[Annotator "TA"]
[PlyCount "49"]
[EventDate "2024.03.25"]
[EventType "swiss"]
[EventCountry "NOR"]
[SourceTitle "playchess.com"]
[Source "ChessBase"]
[SourceQuality "1"]
[TimeControl "40/6000+30:2400+30"]

{[%evp 16,49,43,38,45,32,28,20,35,27,49,4,22,13,18,38,35,7,19,0,77,77,78,74,75,53,231,207,541,279,386,241,551,571,516,530]} 1. Nf3 {[%emt 0:00:45]} Nf6 {[%emt 0:00:05]} 2. c4 {[%emt 0:00:06]} g6 {[%emt 0:00:05]} 3. Nc3 {[%emt 0:00:09]} Bg7 {[%emt 0:00:04]} 4. e4 {[%emt 0:00:08]} d6 {[%emt 0:00:04]} 5. d4 {[%emt 0:00:06]} O-O {[%emt 0:00:10]} 6. Be2 {[%emt 0:00:04]} e5 {[%emt 0:00:09]} 7. O-O {[%emt 0:00:08]} h6 {[%emt 0:00:27]} 8. Re1 {[%emt 0:00:30]} Nbd7 {[%emt 0:00:34]} 9. Bf1 {[%emt 0:00:50]} Re8 {[%emt 0:00:14]} 10. b3 {[%emt 0:00:54]} exd4 {[%emt 0:01:21]} 11. Nxd4 {[%emt 0:00:22]} c5 {[%emt 0:00:15] Die Stellung ist ausgeglichen.} 12. Ndb5 {[%emt 0:00:28]} Re6 {[%emt 0:00:08]} (12... Nxe4 $6 13. Nxe4 Bxa1 14. Bxh6 $16 (14. Nbxd6 Re7 $16)) 13. Rb1 {[%emt 0:00:23]} (13. Nxd6 $2 Ng4 14. Qxg4 Bxc3 15. Bxh6 Nf6 $19 (15... Rxd6 $2 16. Bg5 $19) (15... Bxe1 $2 16. Rxe1 Rxd6 17. h4 $19)) 13... a6 $1 {[%emt 0:11:42]} 14. Nxd6 {[%emt 0:00:11] Bb2 wäre nun fies.} Ne8 {[%emt 0:00:57] [#]} 15. Nxf7 $1 {[%emt 0:00:07]} Kxf7 {[%emt 0:00:38]} 16. Bb2 {[%emt 0:00:07]} Nd6 {[%emt 0:12:15]} 17. g3 {[%emt 0:09:26]} Nb8 {[%emt 0:19:38]} (17... Bd4 $1 $11) 18. Na4 $36 {[%emt 0:18:59][%mdl 2048] Zielt auf e5 ab. Weiss bestimmt, wo es lang geht.} Bxb2 {[%emt 0:09:45]} 19. Rxb2 {[%emt 0:00:17][%cal Bb1b2,Bb2b4,Bb4b5][%mdl 32] Und Bh3 würde nun gewinnen.} Qc7 {[%emt 0:12:58][%cal Ob7b5]} 20. Qd5 {[%emt 0:05:41]} b6 {[%emt 0:09:49] [#] Verliert die Partie.} 21. Bh3 $1 $18 {[%emt 0:02:07]} (21. Qxa8 $2 Bb7 22. Qa7 Nc8 $19 (22... Nxe4 $2 23. Bg2 $18) (22... Nxe4 $2 23. Bg2 $18)) 21... Nb7 $2 {[%emt 0:01:18]} (21... Qc6 22. Nxb6 (22. Bxe6+ Bxe6 23. Qxc6 Nxc6 $16) 22... Qxb6) 22. b4 {[%emt 0:05:30]} (22. Bxe6+ Bxe6 23. Qd2 Nc6 $16) 22... cxb4 {[%emt 0:04:17][%cal Ob8c6]} 23. Rxb4 {[%emt 0:00:20]} (23. Bxe6+ Bxe6 24. Qd2 Nd7 $11) 23... b5 {[%emt 0:00:10]} (23... Nc6 {ist zäher.}) 24. cxb5 {[%emt 0:01:01]} ({Und nicht} 24. Bxe6+ Bxe6 25. Qd2 bxa4 26. Qf4+ (26. Qxh6 Nd7 $15) 26... Qxf4 27. Rxb7+ Nd7 28. gxf4 Rc8 $11) 24... axb5 {[%emt 0:00:05]} 25. Rxb5 {[%emt 0:00:33] Gewichteter Fehlerwert: Weiß=0.48/Schwarz=0.85.  Verlustzug:     	---       	Schwarz=1     Fehler:       	---       	Schwarz=3     Ungenau:       	Weiß=3     	Schwarz=1     OK:         	Weiß=3     	Schwarz=2     Bester:       	Weiß=1     	Schwarz=2     Stark:        	Weiß=1     	Schwarz=1     Brilliant:      	Weiß=1     	---} (25. Bxe6+ Bxe6 26. Qxb5 Nd7 $16) 1-0